Workbook

Sheet Dessasoreamento
B2: Ministério da Integração Nacional
B3: Companhia de Desenvolvimento dos Vales do São Francisco e do Parnaíba
A8: PLANILHA ANALÍTICA DE COTAÇÃO DOS VALORES
A9: ITEM | B9: DISCRIMINAÇÃO | C9: Un. | D9: Quant. | E9: VALORES- R$
E10: DÍGICO | G10: NG INFRA | I10: MGA | K10: CODEVASF
E11: Unit. | F11: Total | G11: Unit. | H11: Total | I11: Unit. | J11: Total | K11: Unit. | L11: Total
A12: 1 | B12: Sistema flutuante de Bombeamento de água, composto de: Plataforma metálica flutuante para fixação dos conjuntos motobomba centrífuga padrão modelo METN300-250-315 KSB, montada em base metálica e motor elétrico de 150 CV / 6 pólos/ 380-440 V (1200 m³/h x 25 m.c.a.), apoiada sobre conjunto de flutuadores em material termoplástico (tambores em PEAD de Ø 600 x 1.000 mm), sendo 10 plataformas flutuantes, composta de três conjuntos motobomba em cada plataforma, incluído o arranjo hidráulico de tubulação/conexões de sucção e recalque (para interligação no trecho flexível); Válvula de Pé com crivo Ø 20", flangeada padrão NBR 7675, classe de pressão PN 6, corpo e crivo em Ferro Nodular ASTM A536 ou aço 1020, válvula e sede em bronze ou latão; com válvula borboleta Ø 16", acionamento através de caixa redutora c/ volante, tipo waffer, classe de pressão 150 psi, corpo e volante em Ferro Nodular ASTM A536; conjunto motobomba submersível para realização automática da escorva; transmissores eletrônicos de pressão para indicação remota e manômetro para indicação direta da pressão de recalque; mangote de borracha Ø18" x 6,0 m flange padrão ANSI B16.5; válvula ventosa tríplice função. | C12: Cj | D12: 10 | E12: 507300 | F12: =ROUND(D12*E12,2) -> 5073000 | G12: 559400 | H12: =G12*D12 -> 5594000 | I12: 595000 | J12: =I12*D12 -> 5950000 | K12: =AVERAGE(E12,G12,I12) -> 553900 | L12: =AVERAGE(F12,H12,J12) -> 5539000
A13: 2 | B13: Tubulação Ø 450mm, em PEAD PE 100, SDR 26, PN 6 bar, Normalizado ABNT NBR 15.561 com certificado (total de 1.500 m em 30 linhas de 48 m cada, em trechos de 6 e/ou 12 metros, conectados por flange metálico entre pontas e solda por termofusão entre tubos), incluídas soldagem por termofusão, ancoragem e instalação | C13: Cj | D13: 30 | E13: 29250 | F13: =ROUND(D13*E13,2) -> 877500 | G13: 29568 | H13: 887040 | I13: 30000 | J13: 900000 | K13: =AVERAGE(E13,G13,I13) -> 29606 | L13: =AVERAGE(F13,H13,J13) -> 888180
A14: 3 | B14: Tubulação Ø 710 mm, em PEAD PE 100, SDR 26, PN 6 bar, Normalizado ABNT NBR 15.561 com certificado (total de 250 m em 8 linhas de 31,2 m cada (média), em trechos de 12 e/ou 6 metros metros, conectados por flange entre pontas e solda por termofusão entre tubos), incluídas soldagem por termofusão, ancoragem e instalação. | C14: Cj | D14: 10 | E14: 41250 | F14: =ROUND(D14*E14,2) -> 412500 | G14: 44010 | H14: 440100 | I14: 40000 | J14: 400000 | K14: 41753.33333 | L14: 417533.3333
A15: 4 | B15: Barrilete metálico secundário, fabricado em chapa de aço carbono #6,35 mm, Ø 700 mm x 4.000 mm, com três derivações de Ø 450 mm, flanges padrão ANSI/ABNT, pintura em tinta epoxi. | C15: Cj | D15: 10 | E15: 14100 | F15: 141000 | G15: 20800 | H15: 208000 | I15: 18000 | J15: 180000 | K15: 17633.33333 | L15: 176333.3333
A16: 5 | B16: Barrilete metálico primário esquerdo, fabricado em chapa de aço carbono #9,52 mm, Ø 1.200 mm x 10 m, com sete derivações de Ø 700 mm, flanges padrão ANSI/ABNT, pintura em tinta epoxi, com 07 Válvulas de Retenção Ø 28", fechamento rápido, montagem tipo waffer, PN 10, corpo em Ferro Nodular ASTM 536, obturador em Poliuretano e válvula ventosa tríplice função. | C16: Cj | D16: 1 | E16: 198000 | F16: 198000 | G16: 292000 | H16: 292000 | I16: 320000 | J16: 320000 | K16: 270000 | L16: 270000
A17: 6 | B17: Barrilete metálico primário direito, fabricado em chapa de aço carbono #9,52 mm, Ø 800 mm x 5 m, com três derivações de Ø 700 mm, flanges padrão ANSI/ABNT, pintura em tinta epoxi, com 03 Válvulas de Retenção Ø 28", fechamento rápido, montagem tipo waffer, PN 10, corpo em Ferro Nodular ASTM 536, obturador em Poliuretano e válvula ventosa tríplice ação. | C17: Cj | D17: 1 | E17: 75000 | F17: 75000 | G17: 154000 | H17: 154000 | I17: 150000 | J17: 150000 | K17: 126333.3333 | L17: 126333.3333
A18: 7 | B18: Transformadores AT/BT trifásicos à óleo, 2.000 KVA @ 6,6 KV x 440 V | C18: Unid. | D18: 3 | E18: 151000 | F18: 453000 | G18: 120000 | H18: 360000 | I18: 125000 | J18: 375000 | K18: 132000 | L18: =AVERAGE(F18,H18,J18) -> 396000
A19: 8 | B19: Painel elétrico de distribuição AT (CCA), 6,6 KV com chave e proteção, composto de uma coluna de entrada e 3 colunas de saída, medição de tensão e corrente. | C19: Unid. | D19: 1 | E19: 263620 | F19: 263620 | G19: 620000 | H19: 620000 | I19: 490000 | J19: 490000 | K19: 457873.3333 | L19: 457873.3333
A20: 9 | B20: Painel elétrico de distribuição BT 440V @ 2.500 A (CCB), entrada de 250 A e 10 saídas de 250 A, com chave motorizada , medição de corrente, medição de tensão e integração ao sistema de supervisão em plc para acionamento e controle remoto, montado em casco em aço carbono 1900 x 1600 x 800, IP-54. | C20: Unid. | D20: 3 | E20: 75000 | F20: 225000 | G20: 145000 | H20: 435000 | I20: 120000 | J20: 360000 | K20: 113333.3333 | L20: 340000
A21: 10 | B21: Painel Elétrico de comando (CCM), com Soft Starter para motor 150 cv, 380/440 V @ 60 Hz, com inclusão da medição de corrente e capacitores para correção do fator de potência. | C21: Unid. | D21: 30 | E21: 55500 | F21: 1665000 | G21: 39822 | H21: 1194660 | I21: 47500 | J21: 1425000 | K21: 47607.33333 | L21: 1428220
A22: 11 | B22: Painel de Controle e supervisão para acionamento remoto do sistema, com plc e microcomputador. | C22: Unid. | D22: 1 | E22: 96000 | F22: 96000 | G22: 98000 | H22: 98000 | I22: 85000 | J22: 85000 | K22: 93000 | L22: 93000
A23: 12 | B23: Painéis Elétricos auxiliares de controle, para interligação dos painéis seccionadores BT ao painel de controle central. | C23: Unid. | D23: 3 | E23: 24000 | F23: 72000 | G23: 29000 | H23: 87000 | I23: 32000 | J23: 96000 | K23: 28333.33333 | L23: 85000
A24: 13 | B24: Materiais para montagem da infra estrutura de calhas e eletrodutos para encaminhamento dos cabos à partir da chave AT, passando pelo painel de distribuição AT (CCA) até a entrada dos transformadores, incluindo os materiais para preparação dos cubículos de transformação. | C24: Unid. | D24: 1 | E24: 39000 | F24: 39000 | G24: 45000 | H24: 45000 | I24: 42000 | J24: 42000 | K24: 42000 | L24: 42000
A25: 14 | B25: Materiais para montagem da infra estrutura de calhas e eletrodutos para encaminhamento dos cabos à partir da saída BT dos transformadores até a entrada dos painéis de distribuição de BT (CCB), incluindo os materiais para preparação dos cubículos de distribuição. | C25: Unid. | D25: 1 | E25: 78000 | F25: 78000 | G25: 75000 | H25: 75000 | I25: 85000 | J25: 85000 | K25: 79333.33333 | L25: 79333.33333
A26: 15 | B26: Materiais para montagem da infra estrutura de calhas e eletrodutos para encaminhamento dos cabos à partir da saída dos painéis de distribuição de BT (CCB) até a entrada dos painéis de comando dos motores (CCM), incluindo os materiais para preparação dos cubículos de distribuição. | C26: Unid. | D26: 1 | E26: 65000 | F26: 65000 | G26: 90000 | H26: 90000 | I26: 90000 | J26: 90000 | K26: 81666.66667 | L26: 81666.66667
A27: 16 | B27: Materiais para montagem da infra estrutura de calhas e eletrodutos para encaminhamento dos cabos à partir da saída dos painéis de comando dos motores (CCM) até os motores dos conjuntos motobomba (nas plataformas flutuantes), incluindo os materiais para preparação dos suportes de sustentação dos cabos na parede da EB-1. | C27: Unid. | D27: 1 | E27: 78000 | F27: 78000 | G27: 92000 | H27: 92000 | I27: 68000 | J27: 68000 | K27: 79333.33333 | L27: 79333.33333
A28: 17 | B28: Cabos elétricos para interligação à partir da chave de AT até a entrada dos painéis de distribuição de BT (CCB), conforme bitolas e tipos abaixo listados: (estimativa das quantidades para composição de proposta, podendo ser revisada para menos após conclusão do projeto elétrico) - Cabo flexível unifilar, isolamento 8,7/15 KV, temperatura máxima de trabalho 90 °C, área de 150 mm²: 560 m (R$128,00/m) - Cabo flexível unifilar, isolamento 0,6/1 KV, temperatura máxima de trabalho 90 °C, área de 240 mm²: 1.620 m (R$76,75/m) - Cabo flexível unifilar, isolamento 0,6/1 KV, temperatura máxima de trabalho 90 °C, área de 120 mm²: 3.500 m (R$36,35/m) | C28: cj | D28: 1 | E28: 323205 | F28: 323205 | G28: 298000 | H28: 298000 | I28: 330000 | J28: 330000 | K28: 317068.3333 | L28: 317068.3333
A30: ITEM | B30: DISCRIMINAÇÃO | C30: Un. | D30: Quant. | E30: VALORES- R$
E31: DÍGICO | G31: NG INFRA | I31: MGA | K31: CODEVASF
E32: Unit. | F32: Total | G32: Unit. | H32: Total | I32: Unit. | J32: Total | K32: Unit. | L32: Total
A33: 18 | B33: Cabos elétricos para interligação à partir das saídas dos painéis de distribuição de BT (CCB) até os motores, conforme bitolas e tipos abaixo listados: (estimativa das quantidades para composição de proposta, podendo ser revisada para menos após conclusão do projeto elétrico) - Cabo flexível unifilar, isolamento 0,6/1 KV, temperatura máxima de trabalho 90 °C, área de 120 mm²: 6.850 m (R$36,35/m) - Cabo flexível 4 vias, isolamento 0,6/1 KV, temperatura máxima de trabalho 90 °C, área de 4x10,0 mm²: 15.000 m (R$19,30/m) - Cabo flexível 4 vias, isolamento 0,6/1 KV, temperatura máxima de trabalho 90 °C, área de 4x6,0 mm²: 3.000 m (R$12,90/m) - Cabo flexível 4 vias, isolamento 0,6/1 KV, temperatura máxima de trabalho 90 °C, área de 4x4,0 mm²: 3.000 m (R$8,50/m) - Cabo flexível 4 vias, isolamento 0,6/1 KV, temperatura máxima de trabalho 90 °C, área de 4x1,5 mm²: 3.000 m (R$3,75/m) - Cabo flexível 2 vias, isolamento 0,6/1 KV, temperatura máxima de trabalho 90 °C, área de 2x2,5 mm²: 5.000 m (R$2,92/m) - Cabo flexível 2 vias, isolamento 0,6/1 KV, temperatura máxima de trabalho 90 °C, área de 2x1,5 mm²: 5.000 m (R$2,12/m) | C33: cj | D33: 1 | E33: 639079 | F33: 639079 | G33: 680000 | H33: 680000 | I33: 650000 | J33: 650000 | K33: 656359.6667 | L33: =AVERAGE(F33,H33,J33) -> 656359.6667
A34: 19 | B34: Montagem da infra estrutura de calhas e eletrodutos, encaminhamento dos cabos e interligações à partir da chave AT, passando pelo painel de distribuição AT (CCA) até a entrada dos transformadores, incluindo a preparação dos cubículos de transformação. | C34: Unid. | D34: 1 | E34: 64800 | F34: 64800 | G34: 95000 | H34: 95000 | I34: 80000 | J34: 80000 | K34: 79933.33333 | L34: 79933.33333
A35: 20 | B35: Montagem da infra estrutura de calhas e eletrodutos, encaminhamento dos cabos e interligações à partir da saída BT dos transformadores até a entrada dos painéis de distribuição de BT (CCB), incluindo a preparação dos cubículos de distribuição. | C35: Unid. | D35: 1 | E35: 129600 | F35: 129600 | G35: 140000 | H35: 140000 | I35: 145000 | J35: 145000 | K35: 138200 | L35: 138200
A36: 21 | B36: Montagem da infra estrutura de calhas e eletrodutos, encaminhamento dos cabos e interligações à partir da saída dos painéis de distribuição de BT (CCB) até a entrada dos painéis de comando dos motores (CCM), incluindo a preparação dos cubículos de distribuição. | C36: Unid. | D36: 1 | E36: 108000 | F36: 108000 | G36: 120000 | H36: 120000 | I36: 112000 | J36: 112000 | K36: 113333.3333 | L36: 113333.3333
A37: 22 | B37: Montagem da infra estrutura de calhas e eletrodutos, encaminhamento dos cabos e interligações à partir da saída dos painéis de comando dos motores (CCM) até os motores dos conjuntos motobomba (nas plataformas flutuantes), incluindo a preparação dos suportes de sustentação dos cabos na parede da EB-1. | C37: Unid. | D37: 1 | E37: 129600 | F37: 129600 | G37: 145000 | H37: 145000 | I37: 158000 | J37: 158000 | K37: 144200 | L37: 144200
A38: 23 | B38: Limpeza do espelho d'água da visada traseira da EB-1, com retirada de aguapés e instalação de linhas de flutuadores para bloquear o avanço das plantas aquáticas na área de instalação dos sistemas flutuantes. | C38: Unid. | D38: 1 | E38: 23000 | F38: =ROUND(D38*E38,2) -> 23000 | G38: 28200 | H38: 28200 | I38: 20000 | J38: 20000 | K38: 23733.33333 | L38: 23733.33333
A39: 24 | B39: Instalação dos dez (10) barriletes secundários, incluída a realização da ancoragem; instalação da tubulação em PEAD Ø 710 mm interligando aos barriletes primários. | C39: Unid. | D39: 10 | E39: 8200 | F39: =ROUND(D39*E39,2) -> 82000 | G39: 7800 | H39: 78000 | I39: 9000 | J39: 90000 | K39: 8333.333333 | L39: 83333.33333
A40: 25 | B40: Instalação do barrilete primário esquerdo Ø 1.200 mm, incluída a picagem na Tubulação de recalque T10, com ensaios de líquido penetrante e ultrasom; instalação de sete (07) válvulas de retenção tipo clasar Ø 28"; realização da ancoragem. | C40: Unid. | D40: 1 | E40: 32000 | F40: =ROUND(D40*E40,2) -> 32000 | G40: 97000 | H40: 97000 | I40: 68000 | J40: 68000 | K40: 65666.66667 | L40: 65666.66667
A41: 26 | B41: Instalação do barrilete primário direito Ø 800 mm, incluída a picagem na Tubulação de recalque T10, com ensaios de líquido penetrante e ultrasom; instalação de três (03) válvulas de retenção tipo clasar Ø 28"; realização da ancoragem. | C41: Unid. | D41: 1 | E41: 22010 | F41: =ROUND(D41*E41,2) -> 22010 | G41: 58010 | H41: 58010 | I41: 48010 | J41: 48010 | K41: =AVERAGE(E41,G41,I41) -> 42676.66667 | L41: 42676.66667
A42: 27 | B42: Montagem mecânica de dez (10) plataformas metálicas flutuantes, totalizando 30 conjuntos motobomba, considerando descarregamento na obra, colocação no espelho d’água (previsto até 60 metros de distância da margem); interligação com a tubulação em PEAD Ø 450 mm e trecho flexível em mangote de borracha Ø 18" x 6,0 m (previsto até 130 pçs em PEAD – média de 4,5 pçs/conjunto); instalação da instrumentação de pressão e nível; instalação de dez (10) sistemas de escorva automático; instalação das válvulas de bloqueio tipo borboleta Ø 16"; instalação das válvulas de pé com crivo; execução das interligações da tubulação até os barriletes secundários; instalação de cabos de aço e anilhas para ancoragem das plataformas metálica flutuantes. Incluído no escopo da instalação os testes operacionais. | C42: Unid. | D42: 10 | E42: 22500 | F42: =ROUND(D42*E42,2) -> 225000 | G42: 21800 | H42: 218000 | I42: 25000 | J42: 250000 | K42: 23100 | L42: 231000
A43: 28 | B43: Projeto Executivo, com descrição do projeto mecânico, hidráulico e elétrico; diagrama unifilar de AT/BT/Controle; fluxograma de instrumentação; lay-out de montagem; desenho das embarcações; folhas de dados dos componentes. | C43: Unid. | D43: 1 | E43: 185000 | F43: 185000 | G43: 220000 | H43: 220000 | I43: 240000 | J43: 240000 | K43: 215000 | L43: 215000
A44: 29 | B44: Supervisão de Montagem Mecânica, Hidráulica e Elétrica, incluindo operação assistida por 10 dias | C44: dias | D44: 1 | E44: 209000 | F44: 209000 | G44: 198000 | H44: =G44 -> 198000 | I44: 220000 | J44: 220000 | K44: 209000 | L44: 209000
A45: 30 | B45: Mobilização do Canteiro de Obras, incluindo a Placa da Obra. | C45: Unid. | D45: 1 | E45: 78000 | F45: =ROUND(D45*E45,2) -> 78000 | G45: 90000 | H45: =G45*D45 -> 90000 | I45: 60000 | J45: 60000 | K45: 76000 | L45: 76000
A46: 31 | B46: Desmobilização do Canteiro de Obras | C46: Unid. | D46: 1 | E46: 48000 | F46: =ROUND(D46*E46,2) -> 48000 | G46: 60000 | H46: =G46*D46 -> 60000 | I46: 42000 | J46: 42000 | K46: 50000 | L46: 50000
A47: TOTAL DE SERVIÇOS | F47: =SUM(F12:F46) -> 12109914 | H47: =SUM(H12:H46) -> 13197010 | J47: =SUM(J12:J46) -> 13529010 | L47: =SUM(L12:L46) -> 12945311.33
